fUST/lending_fUST_20251003
["ID","MTS","AMOUNT","RATE_DAILY","PERIOD"]
[388898067,1759483048293,-604.23,0.00018032,2]
[388898068,1759483048324,-781.19,0.00018032,2]
[388898069,1759483048355,-500.0,0.00018032,2]
[388898070,1759483048388,-300.0,0.00018032,2]
[388898071,1759483048418,-530.87716305,0.00018032,2]
[388898072,1759483048596,-918.27,0.00018032,2]
[388898073,1759483048626,-1324.7,0.00018032,2]
[388898074,1759483048656,-382.73393678,0.00018032,2]
[388898075,1759483048686,-500.0,0.00018032,2]
[388898076,1759483048717,-524.57077631,0.00018032,2]
[388898077,1759483048747,-500.0,0.00018032,2]
[388898078,1759483048776,-261.45,0.00018033,2]
[388898079,1759483048806,-553.37057382,0.00018033,2]
[388898080,1759483050216,-69.81942618,0.00018033,2]
[388898081,1759483050246,-972.47,0.00018033,2]
[388898082,1759483050274,-500.0,0.00018033,2]
[388898083,1759483050303,-2451.57,0.00018033,2]
[388898084,1759483050329,-500.0,0.00018033,2]
[388898085,1759483052098,-884.13,0.00018032,2]
[388898086,1759483052127,-500.0,0.00018032,2]
[388898087,1759483052156,-3443.9,0.00018033,2]
[388898088,1759483054143,-601.06,0.00018032,2]
[388898089,1759483054173,-500.0,0.00018032,2]
[388898090,1759483054203,-343.95,0.00018033,2]
[388898091,1759483054427,-1366.41,0.00018033,2]
[388898092,1759483054457,-500.0,0.00018033,2]
[388898093,1759483054486,-617.48,0.00018033,2]
[388898094,1759483054513,-500.0,0.00018033,2]
[388898095,1759483054540,-166.17,0.00018033,2]
[388898096,1759483056163,-809.87,0.00018033,2]
[388898097,1759483056193,-940.02,0.00018033,2]
[388898098,1759483056222,-920.99,0.00018033,2]
[388898099,1759483056250,-506.69,0.00018033,2]
[388898100,1759483056282,-500.0,0.00018033,2]
[388898101,1759483056312,-715.33,0.00018033,2]
[388898102,1759483056340,-500.0,0.00018033,2]
[388898103,1759483057932,184.4854291,0.00017933,2]
[388898104,1759483109017,154.55216391,0.00017924,2]
[388898105,1759483123890,-287.05045259,0.00018024,2]
[388898106,1759483123919,-300.0,0.00018031,2]
[388898107,1759483123947,-610.7,0.00018032,2]
[388898108,1759483123976,-500.0,0.00018032,2]
[388898109,1759483124007,-500.0,0.00018032,2]
[388898110,1759483124035,-500.0,0.00018032,2]
[388898111,1759483124062,-500.0,0.00018032,2]
[388898112,1759483124091,-500.0,0.00018032,2]
[388898113,1759483124120,-1282.46909482,0.00018032,2]
[388898114,1759483124867,526.07129392,0.00017933,2]
[388898115,1759483127770,-39.57090518,0.00018032,2]
[388898116,1759483127798,-896.3,0.00018032,2]
[388898117,1759483127826,-500.0,0.00018032,2]
[388898118,1759483127854,-574.91,0.00018032,2]
[388898119,1759483127882,-500.0,0.00018032,2]
[388898120,1759483127910,-500.0,0.00018032,2]
[388898121,1759483127940,-1609.77,0.00018032,2]
[388898122,1759483127969,-258.90818964,0.00018032,2]
[388898123,1759483131838,-241.09181036,0.00018032,2]
[388898124,1759483131865,-1334.77,0.00018032,2]
[388898125,1759483131893,-500.0,0.00018032,2]
[388898126,1759483131922,-2349.42,0.00018032,2]
[388898127,1759483137354,1462.15950602,0.00017615,2]
[388898128,1759483149101,-300.0,0.00018031,2]
[388898129,1759483149131,-1247.29,0.00018032,2]
[388898130,1759483149160,-490.91078426,0.00018032,2]
[388898131,1759483149188,-500.0,0.00018032,2]
[388898132,1759483149217,-1293.58843148,0.00018032,2]
[388898133,1759483149315,-2028.20193533,0.00018032,2]
[388898134,1759483153216,-1021.99433862,0.00018024,2]
[388898135,1759483153246,-308.22963319,0.00018032,2]
[388898136,1759483153275,-500.0,0.00018032,2]
[388898137,1759483153307,-500.0,0.00018032,2]
[388898138,1759483153336,-970.68205638,0.00018032,2]
[388898139,1759483153544,-3398.19794362,0.00018032,2]
[388898141,1759483173239,1000.0,0.00018,2]
[388898142,1759483219664,-500.0,0.00018024,2]
[388898143,1759483219692,-1000.0,0.00018024,2]
[388898144,1759483219721,-1000.0,0.00018024,2]
[388898145,1759483219749,-339.6512173,0.00018024,2]
[388898146,1759483219776,-300.0,0.00018031,2]
[388898147,1759483219804,-1200.0,0.00018031,2]
[388898148,1759483219832,-384.9475654,0.00018032,2]
[388898149,1759483219933,-550.8124346,0.00018032,2]
[388898150,1759483219972,-500.0,0.00018032,2]
[388898151,1759483220001,-500.0,0.00018032,2]
[388898152,1759483220030,-500.0,0.00018032,2]
[388898153,1759483220059,-500.0,0.00018032,2]
[388898154,1759483220088,-500.0,0.00018032,2]
[388898155,1759483220117,-500.0,0.00018032,2]
[388898156,1759483220151,-1315.71,0.00018032,2]
[388898157,1759483220178,-500.0,0.00018032,2]
[388898159,1759483220328,-368.59,0.00018032,2]
[388898160,1759483221628,-2038.28,0.00018032,2]
[388898161,1759483221655,-500.0,0.00018032,2]
[388898162,1759483221683,-500.0,0.00018032,2]
[388898163,1759483221711,-926.2,0.00018032,2]
[388898164,1759483221738,-589.03,0.00018032,2]
[388898165,1759483221766,-392.99,0.00018032,2]
[388898166,1759483221881,-107.01,0.00018032,2]
[388898167,1759483225651,-1220.54,0.00018024,3]
[388898168,1759483225679,-500.0,0.00018032,2]
[388898169,1759483225706,-1676.61,0.00018032,2]
[388898170,1759483225732,-500.0,0.00018032,2]
[388898171,1759483225761,-500.0,0.00018032,2]
[388898172,1759483225863,-1451.2,0.00018032,2]
[388898173,1759483225893,-1090.09,0.00018032,2]
[388898174,1759483225923,-586.91,0.00018032,2]
[388898175,1759483225952,-500.0,0.00018032,2]
[388898176,1759483225983,-638.82914,0.00018032,2]
[388898177,1759483226010,-571.87,0.00018033,2]
[388898178,1759483226162,-43.75,0.00018033,2]
[388898179,1759483226177,-456.25,0.00018033,2]
[388898180,1759483226187,-182.57914,0.00018033,2]
[388898181,1759483226201,-571.87,0.00018033,2]
[388898182,1759483226215,-245.55086,0.00018033,2]
[388898183,1759483226224,-76.66086,0.00018033,2]
[388898186,1759483233653,-166.0,0.00018024,2]
[388898187,1759483233682,-500.0,0.00018032,2]
[388898188,1759483233710,-245.99850072,0.00018032,2]
[388898189,1759483233738,-423.33914,0.00018033,2]
[388898190,1759483233766,-500.0,0.00018033,2]
[388898191,1759483233797,-500.0,0.00018033,2]
[388898192,1759483233825,-521.92,0.00018033,2]
[388898193,1759483233853,-500.0,0.00018033,2]
[388898194,1759483233880,-500.0,0.00018033,2]
[388898195,1759483233909,-500.0,0.00018033,2]
[388898196,1759483233938,-522.81471856,0.00018033,2]
[388898197,1759483234078,-239.86528144,0.00018033,2]
[388898198,1759483234107,-500.0,0.00018033,2]
[388898199,1759483234134,-500.0,0.00018033,2]
[388898200,1759483234162,-665.55,0.00018033,2]
[388898201,1759483234189,-500.0,0.00018033,2]
[388898202,1759483234217,-500.0,0.00018033,2]
[388898203,1759483234244,-672.82,0.00018033,2]
[388898204,1759483234271,-500.0,0.00018033,2]
[388898205,1759483234298,-475.29129004,0.00018033,2]
[388898206,1759483234326,-392.95685704,0.00018033,2]
[388898207,1759483234685,-346.9084244,0.00018025,3]
[388898208,1759483235669,-263.3615756,0.00018025,3]
[388898209,1759483235698,-1781.33,0.00018032,2]
[388898210,1759483235727,-107.04314296,0.00018033,2]
[388898211,1759483235754,-500.0,0.00018033,2]
[388898212,1759483235781,-500.0,0.00018033,2]
[388898213,1759483235807,-500.0,0.00018033,2]
[388898214,1759483235833,-1112.65,0.00018033,2]
[388898215,1759483235938,-471.24056288,0.00018033,2]
[388898216,1759483237712,-28.75943712,0.00018033,2]
[388898217,1759483237739,-500.0,0.00018033,2]
[388898218,1759483237766,-500.0,0.00018033,2]
[388898219,1759483237827,-7942.49112576,0.00018033,2]
[388898220,1759483247870,500.0,0.00027397,120]
[388898221,1759483271153,-215.28783944,0.00018024,2]
[388898222,1759483271181,-305.14,0.00018025,3]
[388898223,1759483271209,-152.57,0.00018025,3]
[388898224,1759483271237,-457.72,0.00018025,3]
[388898225,1759483271267,-300.0,0.00018031,2]
[388898226,1759483271297,-500.0,0.00018032,2]
[388898227,1759483271326,-2575.16,0.00018032,2]
[388898228,1759483271354,-488.25432112,0.00018032,2]
[388898229,1759483271473,-11.74567888,0.00018032,2]
[388898230,1759483275124,-500.0,0.00018032,2]
[388898231,1759483275153,-500.0,0.00018032,2]
[388898232,1759483275183,-500.0,0.00018032,2]
[388898233,1759483275212,-500.0,0.00018032,2]
[388898234,1759483275240,-500.0,0.00018032,2]
[388898235,1759483275272,-701.59,0.00018032,2]
[388898236,1759483275301,-760.68,0.00018032,2]
[388898237,1759483275328,-977.16,0.00018032,2]
[388898238,1759483275444,-121.15,0.00018032,2]
[388898239,1759483279391,-786.03,0.00018032,2]
[388898240,1759483279418,-550.64,0.00018032,2]
[388898241,1759483279445,-937.64,0.00018032,2]
[388898242,1759483279473,-2132.3,0.00018032,2]
[388898243,1759483279552,-1186.79,0.00018033,2]
[388898244,1759483323828,1079.44359653,0.00017934,2]
[388898257,1759483410469,679.35418907,0.00017932,2]
[388898259,1759483469978,695.27489241,0.00017931,2]
[388898265,1759483538079,318.0,0.0002515,120]
[388898266,1759483539366,318.0,0.00026408,120]
[388898267,1759483540716,318.0,0.00027728,120]
[388898269,1759483619203,1462.15950602,0.00017705,2]
[388898271,1759483649900,-297.65,0.00018023,3]
[388898272,1759483649928,-893.0,0.00018023,3]
[388898273,1759483649955,-166.0,0.00018023,2]
[388898274,1759483649983,-500.0,0.00018023,2]
[388898275,1759483650015,-300.0,0.0001803,2]
[388898276,1759483650043,-1200.0,0.0001803,2]
[388898277,1759483650074,-300.0,0.0001803,2]
[388898278,1759483650103,-1200.0,0.0001803,2]
[388898279,1759483650248,-286.71,0.00018031,2]
[388898280,1759483650354,-213.29,0.00018031,2]
[388898281,1759483650382,-500.0,0.00018031,2]
[388898282,1759483650413,-500.0,0.00018031,2]
[388898283,1759483650441,-500.0,0.00018031,2]
[388898284,1759483650469,-753.28,0.00018031,2]
[388898285,1759483650500,-1335.22,0.00018031,2]
[388898286,1759483650529,-500.0,0.00018031,2]
[388898287,1759483650559,-500.0,0.00018031,2]
[388898288,1759483650706,-396.43,0.00018031,2]
[388898289,1759483652315,-103.57,0.00018031,2]
[388898290,1759483652344,-611.56,0.00018031,2]
[388898291,1759483652372,-500.0,0.00018031,2]
[388898292,1759483652401,-172.1989505,0.00018031,2]
[388898293,1759483652429,-500.0,0.00018031,2]
[388898294,1759483652456,-500.0,0.00018031,2]
[388898295,1759483652484,-500.0,0.00018031,2]
[388898296,1759483652513,-487.562099,0.00018031,2]
[388898297,1759483652646,-3250.227901,0.00018031,2]
[388898298,1759483656290,-2439.92,0.00018031,2]
[388898299,1759483656320,-968.92,0.00018031,2]
[388898300,1759483656347,-500.0,0.00018031,2]
[388898301,1759483656375,-500.0,0.00018031,2]
[388898302,1759483656403,-500.0,0.00018031,2]
[388898303,1759483656504,-182.33,0.00018032,2]
[388898305,1759483660342,-445.84082164,0.00018031,2]
[388898306,1759483660372,-727.29,0.00018031,2]
[388898307,1759483660401,-1577.26,0.00018032,2]
[388898308,1759483660429,-500.0,0.00018032,2]
[388898309,1759483660458,-1594.17835672,0.00018032,2]
[388898310,1759483660547,-310.87164328,0.00018032,2]
[388898311,1759483660577,-2432.73,0.00018032,2]
[388898312,1759483660606,-500.0,0.00018032,2]
[388898313,1759483660635,-500.0,0.00018032,2]
[388898314,1759483660664,-500.0,0.00018032,2]
[388898315,1759483660693,-500.0,0.00018032,2]
[388898316,1759483660721,-12.80671344,0.00018032,2]
[388898317,1759483660928,-298.06492984,0.00018032,2]
[388898318,1759483660942,-189.12835672,0.00018032,2]
[388898319,1759483660952,-310.87164328,0.00018032,2]
[388898320,1759483662488,-286.35835672,0.00018032,2]
[388898321,1759483662516,-958.13,0.00018032,2]
[388898322,1759483662543,-500.0,0.00018032,2]
[388898323,1759483662570,-485.4260871,0.00018032,2]
[388898324,1759483662599,-1328.26,0.00018032,2]
[388898325,1759483662628,-500.0,0.00018032,2]
[388898326,1759483662774,-1883.66111236,0.00018032,2]
[388898327,1759483662809,-66.67888764,0.00018032,2]
[388898328,1759483662837,-500.0,0.00018032,2]
[388898329,1759483662866,-525.3,0.00018032,2]
[388898330,1759483662893,-638.53,0.00018032,2]
[388898331,1759483662920,-381.15904883,0.00018032,2]
[388898332,1759483662948,-500.0,0.00018032,2]
[388898333,1759483662977,-533.94,0.00018032,2]
[388898334,1759483663007,-500.0,0.00018032,2]
[388898335,1759483663035,-842.84,0.00018032,2]
[388898336,1759483663065,-500.0,0.00018032,2]
[388898337,1759483663264,-23.11412706,0.00018031,2]
[388898338,1759483664074,1014.65161428,0.00017933,2]
[388898339,1759483666076,1014.65161426,0.00018002,2]
[388898340,1759483666372,-476.88587294,0.00018031,2]
[388898341,1759483666399,-1496.09,0.00018032,2]
[388898342,1759483666428,-1450.76,0.00018032,2]
[388898343,1759483666455,-500.0,0.00018032,2]
[388898344,1759483666485,-636.65,0.00018032,2]
[388898345,1759483666513,-379.23825412,0.00018032,2]
[388898346,1759483666600,-120.76174588,0.00018032,2]
[388898347,1759483666628,-500.0,0.00018032,2]
[388898348,1759483666656,-500.0,0.00018032,2]
[388898349,1759483666683,-1800.35,0.00018032,2]
[388898350,1759483666710,-533.51,0.00018032,2]
[388898351,1759483666737,-500.0,0.00018032,2]
[388898352,1759483666765,-225.88650824,0.00018032,2]
[388898353,1759483667147,-619.22,0.00018031,2]
[388898354,1759483667157,-1140.53523764,0.00018032,2]
[388898355,1759483669096,37871.1183978,0.00018,2]
[388898356,1759483670454,-498.45825412,0.00018032,2]
[388898357,1759483670480,-500.0,0.00018032,2]
[388898358,1759483670509,-1355.82,0.00018032,2]
[388898359,1759483670537,-500.0,0.00018032,2]
[388898360,1759483670565,-500.0,0.00018032,2]
[388898361,1759483670594,-728.98,0.00018032,2]
[388898362,1759483670622,-500.0,0.00018032,2]
[388898363,1759483670649,-333.49349176,0.00018032,2]
[388898364,1759483670783,-166.50650824,0.00018032,2]
[388898365,1759483670811,-898.57,0.00018032,2]
[388898366,1759483670840,-500.0,0.00018032,2]
[388898367,1759483670869,-942.56,0.00018032,2]
[388898368,1759483670898,-880.01,0.00018032,2]
[388898369,1759483670927,-500.0,0.00018032,2]
[388898370,1759483670957,-500.0,0.00018032,2]
[388898371,1759483670986,-257.84698352,0.00018032,2]
[388898372,1759483671330,-709.02301648,0.00018032,2]
[388898373,1759483671339,-257.84698352,0.00018032,2]
[388898374,1759483676494,-500.0,0.00018031,2]
[388898375,1759483676523,-242.15301648,0.00018032,2]
[388898376,1759483676551,-500.0,0.00018032,2]
[388898377,1759483676578,-500.0,0.00018032,2]
[388898378,1759483676606,-847.29,0.00018032,2]
[388898379,1759483676632,-584.33,0.00018032,2]
[388898380,1759483676659,-614.85,0.00018032,2]
[388898381,1759483676687,-793.56,0.00018032,2]
[388898382,1759483676717,-335.64396704,0.00018032,2]
[388898383,1759483676812,-164.35603296,0.00018032,2]
[388898384,1759483676840,-500.0,0.00018032,2]
[388898385,1759483676869,-500.0,0.00018032,2]
[388898386,1759483676898,-773.83,0.00018032,2]
[388898387,1759483676927,-1266.95,0.00018032,2]
[388898388,1759483676956,-500.0,0.00018032,2]
[388898389,1759483676983,-500.0,0.00018032,2]
[388898390,1759483677015,-748.37793408,0.00018032,2]
[388898391,1759483677625,-92.98206592,0.00018032,2]
[388898392,1759483677635,-164.35603296,0.00018032,2]
[388898393,1759483684556,-300.0,0.00018031,2]
[388898394,1759483684584,-1450.43,0.00018031,2]
[388898395,1759483684612,-164.57074567,0.00018032,2]
[388898396,1759483684640,-740.54396704,0.00018032,2]
[388898397,1759483684671,-500.0,0.00018032,2]
[388898398,1759483684700,-1489.00057458,0.00018032,2]
[388898399,1759483684813,-710.91942542,0.00018032,2]
[388898401,1759483686594,-858.95,0.00018032,2]
[388898402,1759483686622,-500.0,0.00018032,2]
[388898403,1759483686652,-500.0,0.00018032,2]
[388898404,1759483686681,-552.39,0.00018032,2]
[388898405,1759483686708,-500.0,0.00018032,2]
[388898406,1759483686737,-1542.69,0.00018032,2]
[388898407,1759483686765,-500.0,0.00018032,2]
[388898408,1759483686990,-91.95,0.00018032,2]
[388898409,1759483688803,-485.48,0.00018032,2]
[388898410,1759483688832,-500.0,0.00018032,2]
[388898411,1759483688862,-642.94,0.00018032,2]
[388898412,1759483688891,-346.00345145,0.00018032,2]
[388898413,1759483688920,-1337.0,0.00018032,2]
[388898414,1759483688949,-500.0,0.00018032,2]
[388898415,1759483688979,-500.0,0.00018032,2]
[388898416,1759483689156,-1377.1630971,0.00018032,2]
[388898418,1759483697480,3000.0,0.00033028,120]
[388898419,1759483701580,649.6098518,0.00017933,2]
[388898420,1759483707257,8239.8842618,0.00018,2]
[388898421,1759483714047,70437.80199353,0.00015,2]
[388898422,1759483715692,587.07263162,0.000149,2]
[388898423,1759483716524,3832.08843368,0.00018,2]
[388898424,1759483721035,15323.32612315,0.0001,2]
[388898425,1759483722976,-573.84,0.00018024,3]
[388898426,1759483723006,-637.41,0.00018031,2]
[388898427,1759483723040,-1340.86,0.00018031,2]
[388898428,1759483723071,-500.0,0.00018031,2]
[388898429,1759483723102,-498.14130115,0.00018031,2]
[388898430,1759483723132,-500.0,0.00018031,2]
[388898431,1759483723162,-309.47743409,0.00018031,2]
[388898432,1759483723192,-309.77252952,0.00018031,2]
[388898433,1759483723340,-661.00747048,0.00018031,2]
[388898434,1759483726869,-481.32058852,0.00018031,2]
[388898435,1759483726899,-725.13,0.00018031,2]
[388898436,1759483726928,-500.0,0.00018031,2]
[388898437,1759483726958,-500.0,0.00018031,2]
[388898438,1759483726988,-2598.77192006,0.00018032,2]
[388898439,1759483727071,-389.56498284,0.00018032,2]
[388898440,1759483730934,-1866.94,0.00018032,2]
[388898441,1759483730958,-6266.13,0.00018032,2]
[388898442,1759483733054,-500.0,0.00018031,2]
[388898443,1759483733084,-500.0,0.00018032,2]
[388898444,1759483733114,-1093.48,0.00018032,2]
[388898445,1759483733150,-500.0,0.00018032,2]
[388898446,1759483733189,-579.05,0.00018032,2]
[388898447,1759483733219,-1368.24,0.00018032,2]
[388898448,1759483733596,-918.47,0.00018032,2]
[388898449,1759483733635,-500.0,0.00018032,2]
[388898450,1759483733664,-1052.55,0.00018032,2]
[388898451,1759483733694,-500.17,0.00018032,2]
[388898452,1759483733723,-2306.58,0.00018032,2]
[388898453,1759483733750,-500.0,0.00018032,2]
[388898454,1759483733862,-281.41,0.00018032,2]
[388898455,1759483734975,-218.59,0.00018032,2]
[388898456,1759483735005,-500.0,0.00018032,2]
[388898457,1759483735037,-500.0,0.00018032,2]
[388898458,1759483735065,-500.0,0.00018032,2]
[388898459,1759483735093,-2705.45,0.00018032,2]
[388898460,1759483735187,-1151.93,0.00018032,2]
[388898461,1759483735221,-1771.82,0.00018032,2]
[388898462,1759483735250,-500.0,0.00018032,2]
[388898463,1759483735278,-500.0,0.00018032,2]
[388898464,1759483735369,-151.93,0.00018032,2]
[388898465,1759483735389,-500.0,0.00018032,2]
[388898466,1759483735403,-500.0,0.00018032,2]
[388898467,1759483735418,-1283.75,0.00018032,2]
[388898468,1759483735427,-658.65,0.00018032,2]
[388898469,1759483735436,-210.11,0.00018032,2]
[388898470,1759483737008,-892.98,0.00018024,3]
[388898471,1759483737040,-289.89,0.00018032,2]
[388898472,1759483737070,-576.02,0.00018032,2]
[388898473,1759483737100,-871.1,0.00018032,2]
[388898474,1759483737129,-211.90748998,0.00018032,2]
[388898475,1759483737160,-532.11,0.00018032,2]
[388898476,1759483737189,-1044.67,0.00018032,2]
[388898477,1759483737218,-475.12,0.00018032,2]
[388898478,1759483737413,-667.91,0.00018032,2]
[388898479,1759483737442,-500.0,0.00018032,2]
[388898480,1759483737472,-500.0,0.00018032,2]
[388898481,1759483737501,-500.0,0.00018032,2]
[388898482,1759483737531,-500.0,0.00018032,2]
[388898483,1759483737559,-500.0,0.00018032,2]
[388898484,1759483737588,-500.0,0.00018032,2]
[388898485,1759483737618,-500.0,0.00018032,2]
[388898486,1759483737647,-625.12,0.00018032,2]
[388898487,1759483737919,-212.41502004,0.00018032,2]
[388898488,1759483737933,-320.28497996,0.00018032,2]
[388898489,1759483737943,-93.66502004,0.00018033,2]
[388898490,1759483739022,-10000.01,0.00018033,2]
[388898493,1759483757316,-500.0,0.00018031,2]
[388898494,1759483757346,-730.4,0.00018031,2]
[388898495,1759483757375,-759.54,0.00018031,2]
[388898496,1759483757403,-901.73,0.00018031,2]
[388898497,1759483757431,-500.85565147,0.00018032,2]
[388898498,1759483757460,-747.09869706,0.00018032,2]
[388898499,1759483757563,-1720.76130294,0.00018032,2]
[388898500,1759483761448,-300.0,0.00018032,2]
[388898501,1759483761477,-878.43,0.00018032,2]
[388898502,1759483761511,-1279.15,0.00018032,2]
[388898503,1759483761546,-1368.62,0.00018032,2]
[388898504,1759483761578,-942.03,0.00018032,2]
[388898505,1759483761686,-463.55,0.00018032,2]
[388898506,1759483766634,-1345.69,0.00018031,2]
[388898507,1759483766662,-731.77,0.00018032,2]
[388898508,1759483766691,-500.0,0.00018032,2]
[388898509,1759483766723,-609.77983447,0.00018032,2]
[388898510,1759483766752,-1106.32,0.00018032,2]
[388898511,1759483766781,-580.07033106,0.00018032,2]
[388898512,1759483766878,-252.74966894,0.00018032,2]
[388898556,1759483831769,-166.0,0.00018022,2]
[388898558,1759483831779,-300.0,0.0001803,2]
[388898560,1759483831788,-205.96876116,0.0001803,2]
[388898565,1759483831825,-994.03123884,0.0001803,2]
[388898567,1759483831835,-612.45,0.00018031,2]
[388898568,1759483831844,-500.0,0.00018031,2]
[388898570,1759483831853,-500.0,0.00018031,2]
[388898573,1759483831862,-500.0,0.00018031,2]
[388898575,1759483831871,-1053.54,0.00018031,2]
[388898576,1759483831882,-300.0,0.00018031,2]
[388898578,1759483831891,-300.0,0.00018031,2]
[388898580,1759483831901,-300.0,0.00018031,2]
[388898583,1759483831911,-500.0,0.00018031,2]
[388898584,1759483831920,-500.0,0.00018031,2]
[388898587,1759483831930,-500.0,0.00018031,2]
[388898589,1759483831940,-1698.0,0.00018031,2]
[388898591,1759483831950,-2314.98,0.00018031,2]
[388898593,1759483831959,-2232.7,0.00018031,2]
[388898595,1759483831969,-1135.46,0.00018031,2]
[388898596,1759483831978,-619.84,0.00018032,2]
[388898598,1759483831988,-1741.96603709,0.00018032,2]
[388898600,1759483831999,-301.48396291,0.00018032,2]
[388898602,1759483832009,-258.68237063,0.00018032,2]
[388898635,1759483836432,168.0,0.00017976,2]
[388898650,1759483837562,-500.0,0.00018022,2]
[388898651,1759483837572,-500.0,0.00018031,2]
[388898652,1759483837582,-500.0,0.00018031,2]
[388898653,1759483837592,-500.0,0.00018031,2]
[388898654,1759483837601,-243.60027731,0.00018032,2]
[388898655,1759483837611,-500.0,0.00018032,2]
[388898656,1759483837620,-750.82,0.00018032,2]
[388898657,1759483837629,-979.83,0.00018032,2]
[388898658,1759483837638,-654.16,0.00018032,2]
[388898659,1759483837648,-1271.09,0.00018032,2]
[388898660,1759483837658,-500.0,0.00018032,2]
[388898661,1759483837667,-706.2,0.00018032,2]
[388898662,1759483837677,-572.72,0.00018032,2]
[388898663,1759483837687,-500.0,0.00018032,2]
[388898664,1759483837697,-862.7,0.00018032,2]
[388898665,1759483837706,-500.0,0.00018032,2]
[388898666,1759483837716,-500.0,0.00018032,2]
[388898667,1759483837726,-721.92,0.00018032,2]
[388898668,1759483837735,-587.77,0.00018032,2]
[388898669,1759483837750,-1557.36,0.00018032,2]
[388898670,1759483837760,-500.0,0.00018032,2]
[388898671,1759483837769,-500.0,0.00018032,2]
[388898672,1759483837779,-1606.75,0.00018032,2]
[388898673,1759483837788,-500.0,0.00018032,2]
[388898674,1759483837798,-500.0,0.00018032,2]
[388898675,1759483837808,-2268.7689092,0.00018032,2]
[388898676,1759483837818,-848.40209128,0.00018032,2]
[388898677,1759483837830,-782.64790872,0.00018032,2]
[388898678,1759483837841,-1347.4491188,0.00018033,2]
[388898679,1759483837853,-1041.5700025,0.00018033,2]
[388898680,1759483837866,-1494.423012,0.00018033,2]
[388898681,1759483837876,-500.0,0.00018033,2]
[388898682,1759483837888,-500.0,0.00018033,2]
[388898683,1759483837898,-923.41,0.00018033,2]
[388898684,1759483837908,-500.0,0.00018033,2]
[388898685,1759483837919,-500.0,0.00018033,2]
[388898686,1759483838168,-66.53085007,0.00018033,2]
[388898687,1759483838191,-1287.66914993,0.00018033,2]
[388898688,1759483838202,-1165.97,0.00018033,2]
[388898689,1759483838211,-500.0,0.00018033,2]
[388898690,1759483838220,-2710.59,0.00018033,2]
[388898691,1759483838229,-500.0,0.00018033,2]
[388898692,1759483838239,-500.0,0.00018033,2]
[388898693,1759483838248,-500.0,0.00018033,2]
[388898694,1759483838258,-520.0,0.00018033,3]
[388898695,1759483838268,-500.0,0.00018033,2]
[388898696,1759483838277,-500.0,0.00018033,2]
[388898697,1759483838289,-500.0,0.00018033,2]
[388898698,1759483838298,-558.94,0.00018033,2]
[388898699,1759483838308,-1000.0,0.00018033,2]
[388898700,1759483838317,-87.83085007,0.00018033,2]
[388898703,1759483839595,-2439.34,0.00018031,2]
[388898704,1759483839606,-551.20914993,0.00018033,2]
[388898705,1759483839616,-500.0,0.00018033,2]
[388898706,1759483839626,-500.0,0.00018033,2]
[388898707,1759483839635,-598.87631002,0.00018033,2]
[388898708,1759483839645,-500.0,0.00018033,2]
[388898709,1759483839655,-500.0,0.00018033,2]
[388898710,1759483839664,-500.0,0.00018033,2]